[Event "Silves Open 2025"]
[Site "Fissul"]
[Date "2025.03.07"]
[Round "9.5"]
[White "Espinosa Aranda, Angel"]
[Black "Monteiro, Paulo Alexandre G"]
[Result "1-0"]
[Annotator "TA"]
[ECO "B08"]
[WhiteElo "2442"]
[BlackElo "2221"]
[PlyCount "97"]
[EventDate "2025.03.03"]
[EventType "swiss"]
[EventCountry "POR"]
[SourceTitle "playchess.com"]
[Source "ChessBase"]
[SourceQuality "1"]
[TimeControl "5400+30"]

{[%evp 14,97,4,14,23,3,30,8,43,35,52,37,41,43,39,10,6,-4,0,0,0,0,0,-19,-21,-32,-12,-23,0,-35,-11,-32,0,0,9,0,0,0,0,0,0,0,0,0,0,0,0,0,0,0,8,3,18,0,0,0,0,0,20,14,21,21,16,14,28,17,29,49,50,0,0,0,312,312,413,400,388,379,433,427,348,491,750,713,715,686]} 1. Nf3 {[%emt 0:00:07]} c5 {[%emt 0:00:39]} 2. e4 {[%emt 0:01:39]} d6 {[%emt 0:00:21]} 3. Nc3 {[%emt 0:02:28]} Nf6 {[%emt 0:00:46]} 4. d4 {[%emt 0:00:33]} cxd4 {[%emt 0:00:08]} 5. Qxd4 {[%emt 0:00:05]} Nc6 {[%emt 0:01:44]} 6. Qd3 {[%emt 0:00:09]} g6 {[%emt 0:03:41]} 7. Be2 {[%emt 0:00:19] 7.Nd5 is more fashionable.} Bg7 {[%emt 0:00:19]} 8. O-O {[%emt 0:00:19]} O-O {[%emt 0:01:34] B08: Pirc Defence: Classical System.} 9. Nd5 {[%emt 0:00:35]} Bg4 {[%emt 0:06:25]} 10. c3 {[%emt 0:02:46]} Bxf3 {[%emt 0:08:52] The position is equal.} 11. Qxf3 {[%emt 0:00:28]} Ne5 {[%emt 0:00:58]} 12. Qe3 {[%emt 0:01:44]} Nxd5 {[%emt 0:09:41]} 13. exd5 {[%emt 0:00:43]} Qc7 {[%emt 0:00:06]} 14. b3 $146 {[%emt 0:23:13]} (14. a4 Bf6 15. Qe4 Rac8 16. Qb4 b6 17. a5 bxa5 18. Qxa5 Qxa5 19. Rxa5 Rc7 20. Be3 {1-0 Skvortsov,A (2307)-Kiladze,L (2089) Titled Tuesday intern op 18th Jul Early blitz 2023 (1)}) 14... a6 {[%emt 0:07:30]} 15. a4 {[%emt 0:04:10]} Rfe8 {[%emt 0:09:07]} 16. Bd2 {[%emt 0:06:15]} e6 {[%emt 0:00:26]} 17. dxe6 {[%emt 0:01:46]} Rxe6 {[%emt 0:00:07][%cal Oe5c4]} 18. Qh3 {[%emt 0:00:23]} d5 {[%emt 0:04:01]} 19. Rfe1 {[%emt 0:04:57][%cal Bf1e1,Be1d1,Bd1d5][%mdl 32]} Qb6 {[%emt 0:05:04]} 20. Rab1 {[%emt 0:00:24]} Rae8 {[%emt 0:00:50]} 21. Be3 {[%emt 0:05:43]} Qc7 {[%emt 0:01:01]} 22. Rbc1 {[%emt 0:04:15]} Nd7 {[%emt 0:08:10][%cal Od7c5]} 23. Bf3 {[%emt 0:02:14]} Nf6 {[%emt 0:01:43]} 24. Red1 {[%emt 0:03:25]} Ne4 {[%emt 0:03:49]} 25. Bxe4 {[%emt 0:06:02]} dxe4 {[%emt 0:01:15]} 26. Rd5 {[%emt 0:00:09]} f5 {[%emt 0:03:53][%cal Of5f4]} (26... Bxc3 $2 27. Rc5 Rc6 28. R1xc3 $18) 27. g3 {[%emt 0:01:36]} Be5 {[%emt 0:07:33]} 28. c4 {[%emt 0:06:33]} Rd6 {[%emt 0:03:48]} 29. Qf1 {[%emt 0:01:45]} Rxd5 {[%emt 0:04:11]} 30. cxd5 {[%emt 0:00:04]} Qf7 {[%emt 0:07:48]} 31. Qc4 {[%emt 0:00:47]} Rd8 {[%emt 0:00:00]} 32. Rd1 {[%emt 0:00:07]} Kg7 {[%emt 0:00:00]} 33. Qc5 {[%emt 0:07:31]} Qc7 {[%emt 0:00:00]} 34. b4 {[%emt 0:00:34][%cal Od5d6]} Bd6 {[%emt 0:00:00]} 35. Qd4+ {[%emt 0:00:26]} Kf7 {[%emt 0:00:00]} 36. Bg5 {[%emt 0:00:39]} Re8 {[%emt 0:00:00]} 37. a5 {[%emt 0:01:22]} Qd7 {[%emt 0:00:59]} 38. Rc1 {[%emt 0:00:36]} Kg8 {[%emt 0:01:10]} 39. Bf4 {[%emt 0:02:18]} Bxf4 {[%emt 0:00:15]} 40. gxf4 $11 {[%emt 0:00:03][%mdl 4096] Endgame d6 would now be deadly. KQR-KQR} Qd6 {[%emt 0:00:52]} 41. Qd2 {[%emt 0:02:05]} ({White should try} 41. Rc5 $1 $14) 41... Rd8 {[%emt 0:00:42]} 42. Rc5 {[%emt 0:00:08]} Qf6 $2 {[%emt 0:01:04][%mdl 8192] [#]} (42... Rd7 $11) 43. Rc7 $1 $18 {[%emt 0:00:40]} h6 {[%emt 0:00:49]} 44. Rxb7 {[%emt 0:00:19]} g5 {[%emt 0:00:26]} 45. Rb6 {[%emt 0:00:13]} Qg7 {[%emt 0:00:23]} 46. fxg5 {[%emt 0:00:44]} (46. Rxa6 $2 {too greedy.} gxf4+ 47. Kf1 f3 $19) 46... hxg5 {[%emt 0:00:26]} 47. d6 {[%emt 0:00:17]} ({Don't do} 47. Rxa6 f4) (47. Qe2 $142) 47... Qa1+ {[%emt 0:00:44]} (47... Kh8 $142 48. Qe3 (48. Rxa6 Qa1+ 49. Kg2 f4 $18) 48... f4 49. Qxe4 Rf8) 48. Kg2 {[%emt 0:00:04]} Qe5 {[%emt 0:00:14]} 49. Qxg5+ {[%emt 0:00:08] Weighted Error Value: White=0.06 (flawless) /Black=0.30  Loses game:     	---       	Black=1      Mistake:       	White=2     	Black=1      Inaccurate:     	White=2     	Black=4      OK:         	White=18    	Black=11     Best:        	White=1     	Black=3      Strong:       	White=1     	---} 1-0

[Event "Silves Open 2025"]
[Site "Fissul"]
[Date "2025.03.07"]
[Round "9.6"]
[White "Dias, Ivo Rodrigues"]
[Black "Martins, Bruno Andre Leite"]
[Result "0-1"]
[Annotator "TA"]
[ECO "A45"]
[WhiteElo "2097"]
[BlackElo "2360"]
[PlyCount "60"]
[EventDate "2025.03.03"]
[EventType "swiss"]
[EventCountry "POR"]
[SourceTitle "playchess.com"]
[Source "ChessBase"]
[SourceQuality "1"]
[TimeControl "5400+30"]

{[%evp 9,60,-3,0,0,0,0,17,0,0,0,0,0,0,0,24,-68,-66,-107,-82,-68,-45,-107,-111,-241,-136,-262,-209,-218,-189,-201,-77,-63,-59,-91,-27,-71,-42,-135,-39,-14,-26,-143,-134,-442,-429,-1260,-1247,-29996,-29997,-29997,-29998,-29998,-29999]} 1. d4 {[%emt 0:05:07]} Nf6 {[%emt 0:01:21]} 2. Bf4 {[%emt 0:00:08]} g6 {[%emt 0:01:33]} 3. Nc3 {[%emt 0:00:13]} d5 {[%emt 0:00:08]} 4. e3 {[%emt 0:00:21]} Bg7 {[%emt 0:00:08]} 5. h4 {[%emt 0:00:50]} h5 {[%emt 0:00:53]} 6. Nf3 {[%emt 0:02:24] A45: Trompowsky Attack.} (6. Nb5 $5 Na6 $8 7. Nc3 $11) 6... O-O {[%emt 0:00:19][%cal Oc7c5]} 7. Qd2 {[%emt 0:01:59]} Bf5 {[%emt 0:06:46]} 8. Ne5 {[%emt 0:03:13] The position is equal.} c5 {[%emt 0:07:39]} 9. f3 {[%emt 0:08:42]} cxd4 {[%emt 0:01:49]} 10. exd4 {[%emt 0:01:36]} Nc6 {[%emt 0:00:06]} 11. Nxc6 {[%emt 0:19:35]} bxc6 {[%emt 0:00:28]} 12. Na4 {[%emt 0:00:02]} (12. O-O-O $11) 12... Nd7 $15 {[%emt 0:05:05]} 13. Ba6 $146 {[%emt 0:02:00]} (13. Be2 e5 14. dxe5 Nxe5 15. Nc5 Qb6 16. Nb3 Nc4 17. Bxc4 dxc4 18. Be3 Rfe8 19. Kf2 {0-1 Lizak,P (2400)-Paravyan,D (2589) Titled Tuesday intern op 18th Oct Late blitz 2022 (6)}) 13... e5 {[%emt 0:03:22]} 14. dxe5 {[%emt 0:00:27]} Nxe5 {[%emt 0:00:40][%cal Of5c2]} 15. O-O-O {[%emt 0:04:47]} ({White should play} 15. Kf2 $15) 15... Re8 {[%emt 0:24:49]} 16. Be3 {[%emt 0:22:23] [#]} (16. Rde1 $17 {is a better defense.}) 16... d4 {[%emt 0:15:10]} 17. Bf2 {[%emt 0:13:43]} (17. Bxd4 $17 Nd3+ 18. cxd3 (18. Bxd3 $2 Qxd4 19. Bxf5 Qxa4 $17) 18... Qxd4 19. Bc4) 17... Qd5 {[%emt 0:04:36]} 18. Kb1 {[%emt 0:03:49] [#]} d3 {[%emt 0:05:00][%mdl 512]} 19. cxd3 {[%emt 0:03:29]} Nc4 {[%emt 0:06:13]} (19... Red8 $19 {[%cal Oa8b8]} 20. Nc5 Rdb8) 20. Bxc4 $17 {[%emt 0:01:08]} Qxc4 {[%emt 0:00:06] Black attacks} 21. Qc2 {[%emt 0:02:33] [#]} Qb5 {[%emt 0:07:20] Black has more active pieces.} ({Black should play} 21... Qf4 $1 $17 {[%cal Oc6c5] aiming for ...c5!.} 22. Rhe1 Rf8) 22. Nc3 {[%emt 0:01:06]} Qa6 $36 {[%emt 0:01:30][%mdl 3072] Black has strong compensation. Black is pushing.} 23. Ne4 {[%emt 0:00:19] [#]} (23. Rhe1 $15) 23... Rab8 {[%emt 0:00:38]} (23... Be6 $1 $17 24. a4 Reb8) 24. b3 $15 {[%emt 0:00:14]} c5 {[%emt 0:03:39]} 25. Rhe1 {[%emt 0:01:53]} (25. Bxc5 $11 Rbc8 26. d4 (26. Nd6 $2 Rxc5 27. Nc4 Rxc4 $19)) 25... Rec8 $17 {[%emt 0:00:54]} 26. Qc4 $2 {[%emt 0:00:27][%mdl 8192]} (26. Bg3 $17 {is a better chance.} Rb7 (26... Rb6 27. Bh2 $17) 27. Re2 (27. Nxc5 $2 {loses.} Rxc5 28. Rd2 Rxc2 $19) (27. Nd6 $2 c4 $19)) 26... Qa3 $19 {[%emt 0:00:20]} 27. Re2 {[%emt 0:00:53] Wards off Qb2+} (27. Rd2 $142 Be6 (27... Qa5 28. Kc1 $17) 28. Qc1) 27... Be6 {[%emt 0:00:17] A strong pair of Bishops.} 28. Qc1 {[%emt 0:00:38] [#]} Rxb3+ $1 {[%emt 0:00:34][%mdl 512] Black mates.} 29. axb3 {[%emt 0:00:10]} Qa1+ {[%emt 0:00:09]} 30. Kc2 {[%emt 0:00:11]} Qa2+ {[%emt 0:00:05] Weighted Error Value: White=0.82/Black=0.23 (precise)   Loses game:     	White=1     	---        Mistake:       	White=7     	Black=4      Inaccurate:     	White=3     	---        OK:         	White=5     	Black=6      Best:        	White=1     	Black=3} 0-1

[Event "Silves Open 2025"]
[Site "Fissul"]
[Date "2025.03.07"]
[Round "9.8"]
[White "Van Ree, Thailo"]
[Black "Serarols Mabras, Bernat"]
[Result "0-1"]
[Annotator "TA"]
[ECO "E36"]
[WhiteElo "1881"]
[BlackElo "2311"]
[PlyCount "50"]
[EventDate "2025.03.03"]
[EventType "swiss"]
[EventCountry "POR"]
[SourceTitle "playchess.com"]
[Source "ChessBase"]
[SourceQuality "1"]
[TimeControl "5400+30"]

{[%evp 15,50,8,0,6,9,-10,0,-11,-6,-19,0,-3,13,8,16,-38,-33,-43,0,-31,-27,-50,-10,-83,-87,-87,-106,-100,-102,-106,-56,-118,-73,-461,-473,-470,-462]} 1. d4 {[%emt 0:00:30]} Nf6 {[%emt 0:05:16]} 2. c4 {[%emt 0:00:14]} e6 {[%emt 0:00:02]} 3. Nc3 {[%emt 0:00:10]} Bb4 {[%emt 0:00:02]} 4. Qc2 {[%emt 0:00:15]} d5 {[%emt 0:00:02]} 5. a3 {[%emt 0:00:22]} Bxc3+ {[%emt 0:02:22]} 6. Qxc3 {[%emt 0:01:25]} dxc4 {[%emt 0:06:03]} 7. Qxc4 {[%emt 0:00:16]} O-O {[%emt 0:00:20]} 8. Nf3 {[%emt 0:00:23]} b6 {[%emt 0:00:28]} 9. Bg5 {[%emt 0:01:40][%cal Bc1g5,Bg5h4,Bh4g3,Bg3d6][%mdl 32] Black is weak on the dark squares. E36: Nimzo-Indian: Classical: 4...d5 5 a3.} Ba6 {[%emt 0:02:39]} 10. Qc2 {[%emt 0:00:51]} Nbd7 {[%emt 0:01:12]} 11. Rd1 {[%emt 0:01:24] The position is equal.} h6 {[%emt 0:00:42]} 12. Bh4 {[%emt 0:06:08]} Qc8 {[%emt 0:07:47]} 13. g4 {[%emt 0:07:03]} Nxg4 $146 {[%emt 0:19:01]} (13... c5 14. g5 hxg5 15. Bxg5 Bb7 16. dxc5 Be4 17. Qc1 Qxc5 18. Qxc5 bxc5 19. Rg1 Bxf3 20. exf3 Rfb8 21. Bc1 {½-½ Rodriguez Rey,J (2269)-Del Vasto,C (2316) Champion's League 2021/C5 email}) 14. Rg1 {[%emt 0:00:31] White sacrificed a pawn} f5 {[%emt 0:09:35]} 15. h3 {[%emt 0:09:47]} (15. d5 $11 Nc5 16. h3) 15... Ngf6 $15 {[%emt 0:01:15]} 16. Qc1 {[%emt 0:15:03]} Kh8 {[%emt 0:04:24]} (16... Kh7 {looks sharper.} 17. Qc6 Re8 18. Rc1 Nd5) 17. Bg3 {[%emt 0:10:19]} c5 {[%emt 0:06:57]} 18. Bd6 {[%emt 0:07:33]} Rf7 {[%emt 0:00:27]} 19. Ne5 {[%emt 0:00:55]} (19. dxc5 $11 bxc5 (19... Nxc5 20. Ne5 $11) 20. Qe3) 19... Nxe5 $17 {[%emt 0:02:22]} 20. Bxe5 {[%emt 0:02:18]} cxd4 {[%emt 0:02:51]} 21. Qf4 {[%emt 0:00:45] [#]} d3 $1 {[%emt 0:02:58]} 22. exd3 {[%emt 0:01:52]} Qd7 {[%emt 0:03:36]} (22... Qd8 $17 23. Qg3 Rc8) 23. Be2 {[%emt 0:02:03]} (23. Rc1 $1 $15 Rc8 (23... Bxd3 $2 {perishes.} 24. Rd1 $18) 24. Rxc8+ Qxc8 (24... Bxc8 25. Qg3 $15) 25. Kd1) 23... Kh7 {[%emt 0:03:18]} 24. Bh5 $2 {[%emt 0:07:31][%mdl 8192]} Nxh5 $19 {[%emt 0:01:11]} 25. Qf3 {[%emt 0:00:04]} Qd5 {[%emt 0:01:25] Weighted Error Value: White=0.49/Black=0.18 (very precise)   Loses game:     	White=1     	---        Mistake:       	White=3     	Black=1      Inaccurate:     	White=1     	Black=3      OK:         	White=3     	Black=3      Best:        	White=1     	Black=5} 0-1

[Event "Silves Open 2025"]
[Site "Fissul"]
[Date "2025.03.07"]
[Round "9.10"]
[White "Khamrakulov, Ibragim S."]
[Black "Goncalves, Diogo Figueiredo"]
[Result "1-0"]
[Annotator "TA"]
[ECO "B10"]
[WhiteElo "2384"]
[BlackElo "1985"]
[PlyCount "125"]
[EventDate "2025.03.03"]
[EventType "swiss"]
[EventCountry "POR"]
[SourceTitle "playchess.com"]
[Source "ChessBase"]
[SourceQuality "1"]
[TimeControl "5400+30"]

{[%evp 14,125,0,-1,-1,2,12,-24,-11,-30,-18,-3,6,-39,-24,-46,0,0,0,0,0,-4,0,0,4,-147,5,2,28,22,26,30,22,9,64,64,65,66,62,64,62,62,66,27,28,43,33,39,44,57,127,126,131,120,149,162,178,118,118,89,187,68,77,68,78,78,302,64,364,264,264,157,264,22,341,230,306,215,230,230,230,0,0,0,0,0,0,0,0,0,179,0,0,0,0,0,0,0,0,0,0,0,167,167,29968,29968,29964,29967,29973,29974,29978,29978,29978,29978]} 1. e4 {[%emt 0:07:33]} c6 {[%emt 0:00:27]} 2. c4 {[%emt 0:00:38]} d5 {[%emt 0:00:08]} 3. exd5 {[%emt 0:00:51]} cxd5 {[%emt 0:00:02]} 4. cxd5 {[%emt 0:00:35]} Nf6 {[%emt 0:00:07]} 5. Nc3 {[%emt 0:00:15]} Nxd5 {[%emt 0:00:21]} 6. Bc4 {[%emt 0:04:35]} Nb6 {[%emt 0:03:04] 6...e6 is more fashionable.} 7. Bb3 {[%emt 0:02:39]} Nc6 {[%emt 0:11:15]} 8. Nf3 {[%emt 0:01:37]} Bf5 {[%emt 0:31:33] B10: Caro-Kann: 2 d3 and 2 c4.} 9. d4 {[%emt 0:11:16]} e6 {[%emt 0:00:32]} 10. a4 $146 {[%emt 0:03:46]} (10. O-O Be7 11. a4 Na5 12. Ba2 O-O 13. Qe2 Nc6 14. Bb3 Na5 15. Ba2 Nc6 16. Bb3 Nxd4 17. Nxd4 Qxd4 18. a5 Nc8 {½-½ Loeschnauer,R (2437)-Jacot,L (2491) EU-chT11 fin email 2021}) 10... Bb4 {[%emt 0:07:30] Black has an edge.} 11. Bg5 {[%emt 0:14:45]} Qd7 {[%emt 0:02:52]} 12. O-O {[%emt 0:03:52][%cal Oa4a5]} O-O {[%emt 0:00:15]} 13. h3 {[%emt 0:03:15]} h6 {[%emt 0:03:56]} 14. Be3 {[%emt 0:01:46]} Rac8 {[%emt 0:03:26]} 15. d5 {[%emt 0:17:21]} Nxd5 {[%emt 0:04:40]} 16. Nxd5 {[%emt 0:02:41]} exd5 {[%emt 0:00:02]} 17. Qxd5 {[%emt 0:00:06]} Qxd5 {[%emt 0:03:09]} 18. Bxd5 {[%emt 0:02:48]} a5 {[%emt 0:03:31]} 19. Rac1 $2 {[%emt 0:07:38]} ({White should play} 19. Rfd1 $11) 19... Rfd8 $2 {[%emt 0:02:14]} (19... Bd3 $1 $17 20. Rfd1 Be2) 20. Rfd1 $11 {[%emt 0:00:15]} Re8 {[%emt 0:03:40]} 21. Bb6 {[%emt 0:02:41]} Be4 {[%emt 0:04:44]} 22. Bxe4 {[%emt 0:01:27]} Rxe4 {[%emt 0:00:02]} 23. Nd4 {[%emt 0:00:10]} Rce8 {[%emt 0:05:00]} (23... Ne7 $11) 24. Nxc6 $14 {[%emt 0:00:20]} bxc6 {[%emt 0:00:02]} 25. Rxc6 {[%emt 0:00:08]} Re1+ {[%emt 0:00:26]} 26. Rxe1 {[%emt 0:01:18]} Rxe1+ {[%emt 0:00:02][%mdl 4096] Endgame KRB-KRB. White is a pawn up.} 27. Kh2 {[%emt 0:00:15]} Ra1 {[%emt 0:00:16]} 28. b3 {[%emt 0:01:47]} Ra3 {[%emt 0:00:20]} 29. Rc8+ {[%emt 0:02:43]} Kh7 {[%emt 0:00:05]} 30. Ra8 {[%emt 0:00:04]} Rxb3 {[%emt 0:00:11] aiming for ...Bd6+.} 31. Bxa5 {[%emt 0:00:03]} Bxa5 {[%emt 0:00:10]} (31... Bc5 $1 $14) 32. Rxa5 {[%emt 0:00:16] KR-KR. White is a pawn up.} Ra3 {[%emt 0:00:18]} 33. h4 {[%emt 0:00:33]} g6 {[%emt 0:00:19]} 34. g4 {[%emt 0:01:29]} Kg7 {[%emt 0:01:02]} 35. Kg2 {[%emt 0:00:31]} (35. g5 $18) 35... Kf6 $16 {[%emt 0:00:59]} 36. Ra7 {[%emt 0:03:44]} Kg7 {[%emt 0:00:36]} (36... Rc3 $16) 37. a5 {[%emt 0:00:32]} (37. g5 $18) 37... Ra4 {[%emt 0:00:06]} 38. Kg3 {[%emt 0:00:09]} Ra3+ {[%emt 0:00:05]} 39. f3 $1 {[%emt 0:00:05] White is more active.} Ra1 $2 {[%emt 0:00:07]} (39... Kf6 $16) 40. a6 $2 {[%emt 0:00:32]} (40. g5 $18 Ra2 41. f4) 40... Ra4 $2 {[%emt 0:04:15][%mdl 8192]} ({Better is} 40... g5 $14) 41. Ra8 {[%emt 0:00:30]} Kf6 {[%emt 0:02:59]} 42. Kf2 {[%emt 0:01:32]} (42. a7 $1 $18 Kg7 43. g5) 42... Ra3 {[%emt 0:00:24]} (42... Ra2+ $16 {keeps fighting.} 43. Kg3 g5) 43. f4 $2 {[%emt 0:01:52]} (43. a7 $1 $18 {Ke2 would now be deadly.} Kg7 44. g5) 43... Kg7 $2 {[%emt 0:04:12][%mdl 8192]} (43... h5 $11) 44. Ke2 {[%emt 0:00:07]} Ra4 {[%emt 0:00:30]} 45. Ke3 {[%emt 0:00:07]} Kf6 {[%emt 0:00:15]} 46. g5+ $1 {[%emt 0:01:48]} hxg5 {[%emt 0:00:22]} 47. hxg5+ {[%emt 0:00:25]} (47. fxg5+ $18 Kf5 48. a7) 47... Kf5 $11 {[%emt 0:01:58]} 48. Ra7 {[%emt 0:00:06]} f6 {[%emt 0:00:50]} 49. gxf6 {[%emt 0:00:09]} Kxf6 {[%emt 0:00:07]} 50. Ra8 {[%emt 0:00:22]} Kf7 {[%emt 0:00:37]} 51. Kd3 $2 {[%emt 0:00:49]} (51. f5 $11) 51... Kg7 $1 $18 {[%emt 0:00:45] [#]} 52. Kc3 $2 {[%emt 0:00:36]} ({White has to play} 52. a7 $1 $18) 52... Rxf4 $11 {[%emt 0:00:43]} 53. Kb3 {[%emt 0:00:03]} Rf1 {[%emt 0:00:48]} 54. Rd8 {[%emt 0:00:37]} Ra1 {[%emt 0:00:26]} 55. Rd6 {[%emt 0:00:05]} g5 {[%emt 0:00:21]} 56. Kb4 {[%emt 0:00:06]} g4 {[%emt 0:00:25]} 57. Kb5 {[%emt 0:00:09]} g3 $2 {[%emt 0:00:56] [#]} (57... Kf7 $11 {and Black has nothing to worry.}) 58. Rd3 $1 $18 {[%emt 0:00:21]} Kf6 $2 {[%emt 0:00:23]} (58... Rb1+ $18 59. Kc6 Rc1+ 60. Kb7 Rb1+ 61. Ka8 g2 62. Rg3+ Kf7) 59. Rxg3 {[%emt 0:00:15] White mates.} Ke6 {[%emt 0:00:12]} 60. Rd3 {[%emt 0:00:05]} Rb1+ {[%emt 0:00:23]} 61. Ka4 {[%emt 0:00:26]} Rb6 {[%emt 0:00:27]} 62. Ka5 {[%emt 0:00:06]} Rb1 {[%emt 0:00:12]} 63. Ra3 {[%emt 0:00:08] Weighted Error Value: White=0.44/Black=0.57  Loses game:     	---       	Black=4      Missed win:     	White=4     	---        Mistake:       	White=5     	Black=6      Inaccurate:     	White=4     	Black=3      OK:         	White=8     	Black=14     Best:        	White=5     	Black=4      Strong:       	White=3     	Black=1} 1-0

[Event "Silves Open 2025"]
[Site "Fissul"]
[Date "2025.03.07"]
[Round "9.17"]
[White "Boesel, Alexander"]
[Black "Esteves, Goncalo Maria Franco"]
[Result "1-0"]
[Annotator "TA"]
[ECO "C54"]
[WhiteElo "2046"]
[BlackElo "1962"]
[PlyCount "112"]
[EventDate "2025.03.03"]
[EventType "swiss"]
[EventCountry "POR"]
[SourceTitle "playchess.com"]
[Source "ChessBase"]
[SourceQuality "1"]
[TimeControl "5400+30"]

{[%evp 14,112,22,24,1,-2,51,1,19,7,20,12,23,20,22,21,33,20,50,31,65,41,177,189,173,183,178,158,162,158,192,136,191,182,205,204,205,200,189,190,215,181,199,186,263,260,260,187,272,227,269,168,245,258,251,243,246,229,230,207,186,170,179,182,237,166,210,160,198,211,221,228,229,204,287,208,264,272,321,321,321,321,320,316,321,321,321,321,321,321,365,338,365,365,506,464,493,462,668,636,1216]} 1. e4 {[%emt 1:31:00]} e5 {[%emt 1:31:00]} 2. Nf3 {[%emt 0:00:30]} Nc6 {[%emt 0:00:30]} 3. Bc4 {[%emt 0:00:30]} Bc5 {[%emt 0:00:30]} 4. d3 {[%emt 0:00:30]} Nf6 {[%emt 0:00:30]} 5. O-O {[%emt 0:00:30]} a6 {[%emt 0:00:30]} 6. c3 {[%emt 0:00:30]} d6 {[%emt 0:00:30]} 7. Bb3 {[%emt 0:00:30] 7.Re1 is the recent fashion.} Ba7 {[%emt 0:00:30]} 8. Nbd2 {[%emt 0:00:30]} h6 {[%emt 0:00:30] C54: Giuoco Piano: 4 c3 Nf6, main lines with 5 d4 and 5 d3.} 9. Qe2 {[%emt 0:00:30]} Be6 {[%emt 0:00:30]} (9... O-O $11) 10. Nc4 {[%emt 0:00:30]} ({Better is} 10. Bxe6 $14 fxe6 11. a3) 10... Bxc4 $146 {[%emt 0:00:30] The position is equal.} ({Predecessor:} 10... O-O 11. Bc2 Re8 12. Kh1 Qd7 13. Be3 Bxe3 14. Nxe3 d5 15. d4 exd4 16. e5 dxe3 17. exf6 {½-½ Paehtz,E (2457)-Ashton,A (2295) Monarch Assurance 16th 2007 (5)}) 11. dxc4 {[%emt 0:00:30]} O-O {[%emt 0:00:30]} 12. Nh4 {[%emt 0:00:30]} Ne7 {[%emt 0:00:30]} 13. Qf3 {[%emt 0:00:30][%cal Oc1h6]} Kh7 {[%emt 0:00:30]} 14. Bc2 {[%emt 0:00:30]} Qd7 {[%emt 0:00:30]} 15. h3 {[%emt 0:00:30]} Nfg8 {[%emt 0:00:30]} 16. Kh2 {[%emt 0:00:30]} g5 {[%emt 0:00:30]} 17. Nf5 {[%emt 0:00:30]} (17. Bxg5 $5 hxg5 18. Qh5+ Nh6 19. Nf5 Nexf5 20. exf5 $15) 17... c6 {[%emt 0:00:30] [#] Loses the game.} (17... Nxf5 $14 18. exf5 Nf6) 18. Bxg5 $1 $18 {[%emt 0:00:30]} Nxf5 {[%emt 0:00:30]} 19. exf5 {[%emt 0:00:30] f6+ would kill now.} f6 {[%emt 0:00:30]} (19... hxg5 20. Qh5+ Kg7 21. Qxg5+ Kh8 22. f6) 20. Be3 {[%emt 0:00:30]} Bxe3 {[%emt 0:00:30]} 21. fxe3 {[%emt 0:00:30]} Qf7 {[%emt 0:00:30]} 22. Bb3 {[%emt 0:00:30]} (22. Rad1 $18) 22... Ne7 {[%emt 0:00:30]} (22... a5 $16 23. a4 Ne7) 23. Rad1 {[%emt 0:00:30]} Rad8 {[%emt 0:00:30]} 24. Rf2 {[%emt 0:00:30][%cal Bf1f2,Bf2d2,Bd2d3][%mdl 32]} Rd7 {[%emt 0:00:30]} 25. Rfd2 {[%emt 0:00:30]} Rfd8 {[%emt 0:00:30] Black is weak on the light squares} 26. e4 {[%emt 0:00:30]} Qe8 {[%emt 0:00:30]} 27. Rd3 {[%emt 0:00:30]} Nc8 {[%emt 0:00:30]} 28. R1d2 {[%emt 0:00:30]} Nb6 {[%emt 0:00:30]} (28... Rg7 $142 29. c5 d5) 29. Qd1 {[%emt 0:00:30][%cal Rd3d6]} Qe7 {[%emt 0:00:30]} 30. a3 {[%emt 0:00:30]} a5 {[%emt 0:00:30]} (30... c5 $142 31. Ba2 Nc8) 31. Ba2 {[%emt 0:00:30]} a4 {[%emt 0:00:30]} 32. b4 {[%emt 0:00:30]} c5 {[%emt 0:00:30]} (32... axb3 33. Bxb3 (33. Qxb3 Nc8 $18) 33... c5) 33. Rg3 {[%emt 0:00:30]} Rg8 {[%emt 0:00:30]} 34. Rxg8 {[%emt 0:00:30]} Kxg8 {[%emt 0:00:30]} 35. Qh5 {[%emt 0:00:30]} Qf8 {[%emt 0:00:30]} 36. Kh1 {[%emt 0:00:30]} Kh7 {[%emt 0:00:30]} 37. Qg6+ {[%emt 0:00:30]} Kh8 {[%emt 0:00:30]} 38. Rd3 {[%emt 0:00:30]} Rh7 {[%emt 0:00:30]} (38... Rc7 $142 39. b5 Nc8) 39. Rg3 {[%emt 0:00:30]} Qf7 {[%emt 0:00:30]} 40. b5 {[%emt 0:00:30]} Nc8 {[%emt 0:00:30]} 41. Bb1 $40 {[%emt 0:00:30][%cal Ba2b1,Bb1c2,Bc2a4,Ba4d1][%mdl 160] White goes for the king.} Ne7 {[%emt 0:00:30]} 42. Qxf7 {[%emt 0:00:30]} Rxf7 {[%emt 0:00:30][%mdl 4096] Endgame KRB-KRN. White is a pawn up.} 43. Bc2 {[%emt 0:00:30]} Rg7 {[%emt 0:00:30]} (43... Rf8 {keeps fighting.} 44. Bxa4 Ra8) 44. Rd3 {[%emt 0:00:30]} Nc8 {[%emt 0:00:30]} 45. Bxa4 {[%emt 0:00:30]} b6 {[%emt 0:00:30]} 46. Bd1 {[%emt 0:00:30]} Kg8 {[%emt 0:00:30]} 47. a4 {[%emt 0:00:30]} Kf8 {[%emt 0:00:30]} 48. Kh2 {[%emt 0:00:30]} Rd7 {[%emt 0:00:30]} 49. Rd2 {[%emt 0:00:30]} Ra7 {[%emt 0:00:30]} 50. Kg3 {[%emt 0:00:30]} Rg7+ {[%emt 0:00:30]} 51. Kh4 {[%emt 0:00:30]} Rg5 {[%emt 0:00:30]} 52. g4 {[%emt 0:00:30]} Ke7 {[%emt 0:00:30]} 53. Ra2 {[%emt 0:00:30]} d5 {[%emt 0:00:30]} 54. cxd5 {[%emt 0:00:30] White is clearly winning.} Nd6 {[%emt 0:00:30]} 55. a5 {[%emt 0:00:30][%cal Ba4a5,Ba5b6][%mdl 32]} Nxb5 {[%emt 0:00:30]} (55... Rg8 $142 56. axb6 Rb8) 56. axb6 {[%emt 0:00:30] aiming for b7.} Kd7 {[%emt 0:00:30] Weighted Error Value: White=0.15 (very precise) /Black=0.36  Mistake:       	White=2     	Black=9      Inaccurate:     	White=1     	Black=4      OK:         	White=24    	Black=10     Brilliant:      	White=1     	---} 1-0